bitfinex/quotes_BTCUSD_20240627
["timestamp","ask_amount","ask_price","bid_price","bid_amount"]
[1719506513702,0.26374363,61854.0,61853.0,0.1435003]
[1719506514099,0.26374363,61854.0,61853.0,0.1345003]
[1719506514513,0.26374363,61854.0,61853.0,0.1425003]
[1719506514726,0.26374363,61854.0,61853.0,0.14242834]
[1719506514917,0.1,61854.0,61853.0,0.13442834]
[1719506515427,0.1,61854.0,61853.0,0.2287318]
[1719506515630,0.4727928,61867.0,61853.0,0.2287318]
[1719506515631,0.1,61855.0,61854.0,0.0157003]
[1719506515856,0.1,61855.0,61853.0,0.3180315]
[1719506515857,0.1,61857.0,61856.0,0.0157003]
[1719506516411,0.1,61857.0,61856.0,0.27583928]
[1719506517067,0.1,61858.0,61857.0,0.0157003]
[1719506517661,0.1,61858.0,61857.0,0.02160718]
[1719506517857,0.1,61858.0,61857.0,0.14510718]
[1719506518460,0.1,61858.0,61857.0,0.15710718]
[1719506520399,0.1,61858.0,61857.0,0.17010718]
[1719506521548,0.1,61858.0,61857.0,0.17103118]
[1719506521736,0.1,61858.0,61857.0,0.42647016]
[1719506521891,0.1,61862.0,61861.0,0.0157003]
[1719506522093,0.00084,61868.0,61862.0,0.2236003]
[1719506522094,0.1,61863.0,61862.0,0.2236003]
[1719506522312,0.16455688,61868.0,61867.0,0.0157003]
[1719506522544,0.10084,61868.0,61867.0,0.0157003]
[1719506522779,0.10084,61868.0,61867.0,0.22948659]
[1719506522906,0.10084,61868.0,61867.0,0.39182557]
[1719506523691,0.00084,61868.0,61867.0,0.39182557]
[1719506524671,0.00084,61868.0,61867.0,0.40582557]
[1719506525127,0.00084,61868.0,61867.0,0.41982557]
[1719506527260,0.00084,61868.0,61867.0,0.42982557]
[1719506527477,0.00084,61876.0,61872.0,0.2509003]
[1719506527719,0.00084,61876.0,61875.0,0.69454274]
[1719506527922,0.00084,61876.0,61875.0,0.49454274]
[1719506528121,0.00084,61876.0,61875.0,0.50040825]
[1719506530393,0.00084,61876.0,61875.0,0.70040825]
[1719506530597,0.00084,61876.0,61875.0,0.51440825]
[1719506531001,0.00084,61876.0,61875.0,0.50040825]
[1719506531475,0.00084,61876.0,61875.0,0.71440825]
[1719506532230,0.00084,61876.0,61875.0,0.88510825]
[1719506534120,0.00084,61876.0,61875.0,0.89910825]
[1719506534487,0.00084,61876.0,61875.0,0.88510825]
[1719506534950,0.00084,61876.0,61875.0,0.69910825]
[1719506535180,0.00084,61876.0,61875.0,0.50040825]
[1719506535542,0.00084,61876.0,61875.0,0.72840825]
[1719506536609,0.00084,61876.0,61875.0,1.09910825]
[1719506536754,0.10838,61894.0,61875.0,1.09910825]
[1719506536755,0.1,61898.0,61897.0,0.01]
[1719506536937,0.1,61898.0,61896.0,0.0157003]
[1719506537140,0.1,61898.0,61897.0,0.0157003]
[1719506537759,0.02578307,61899.0,61897.0,0.0157003]
[1719506537960,0.1,61903.0,61894.0,0.0157003]
[1719506538174,0.1,61903.0,61895.0,0.00581819]
[1719506538369,0.234,61899.0,61893.0,0.0157003]
[1719506538568,0.1,61898.0,61897.0,0.013]
[1719506538802,0.1927,61898.0,61897.0,0.013]
[1719506539212,0.1927,61898.0,61891.0,0.0157003]
[1719506539618,0.0726,61897.0,61896.0,0.0157003]
[1719506541777,0.0726,61897.0,61896.0,0.0247003]
[1719506542770,0.0726,61897.0,61896.0,0.0347003]
[1719506543788,0.1,61898.0,61897.0,0.0157003]
[1719506544111,0.25887298,61904.0,61902.0,0.0157003]
[1719506544223,0.25887298,61904.0,61901.0,0.0157003]
[1719506544422,0.25887298,61904.0,61902.0,0.00580379]
[1719506544622,0.25887298,61904.0,61901.0,0.0157003]
[1719506544965,0.25887298,61904.0,61897.0,0.0157003]
[1719506545185,0.1653,61903.0,61897.0,0.0297003]
[1719506545405,0.2653,61903.0,61900.0,0.0157003]
[1719506545620,0.2653,61903.0,61897.0,0.0297003]
[1719506545815,0.2653,61903.0,61896.0,0.01]
[1719506545816,0.2653,61903.0,61898.0,0.0157003]
[1719506546092,0.2653,61903.0,61896.0,0.01]
[1719506546093,0.2653,61903.0,61901.0,0.007]
[1719506546518,0.2653,61903.0,61900.0,0.0157003]
[1719506546900,0.2653,61903.0,61902.0,0.008]
[1719506547055,0.2653,61903.0,61900.0,0.0157003]
[1719506547257,0.2653,61903.0,61898.0,0.0157003]
[1719506547487,0.2653,61903.0,61901.0,0.005]
[1719506547641,0.2653,61903.0,61898.0,0.0157003]
[1719506548085,0.2653,61903.0,61902.0,0.005]
[1719506550154,0.2653,61903.0,61900.0,0.0157003]
[1719506550363,0.2653,61903.0,61902.0,0.004]
[1719506550777,0.26524318,61903.0,61900.0,0.0157003]
[1719506551214,0.26524318,61903.0,61902.0,0.008]
[1719506551487,0.26524318,61903.0,61902.0,0.017]
[1719506551643,0.26524318,61903.0,61902.0,0.008]
[1719506552444,0.1,61903.0,61902.0,0.008]
[1719506552647,0.1,61905.0,61902.0,0.2309]
[1719506552971,0.234,61910.0,61903.0,0.0157003]
[1719506552972,0.0883,61907.0,61903.0,0.0157003]
[1719506553105,0.0883,61907.0,61903.0,0.02150151]
[1719506553510,0.0883,61907.0,61906.0,0.0157003]
[1719506553715,0.1,61909.0,61908.0,0.0157003]
[1719506554013,0.1,61909.0,61907.0,0.0157003]
[1719506554444,0.02486677,61910.0,61907.0,0.0157003]
[1719506554772,0.10838,61913.0,61907.0,0.0157003]
[1719506555224,0.10838,61913.0,61907.0,0.0177003]
[1719506555418,0.13384803,61913.0,61908.0,0.0157003]
[1719506555858,0.13384803,61913.0,61907.0,0.0177003]
[1719506556065,0.13384803,61913.0,61907.0,0.002]
[1719506556270,0.0883,61912.0,61907.0,0.002]
[1719506556402,0.234,61909.0,61907.0,0.002]
[1719506556607,0.1,61908.0,61905.0,0.0157003]
[1719506557174,0.1,61908.0,61907.0,0.001]
[1719506557298,0.1,61908.0,61907.0,0.0177003]
[1719506557504,0.1,61908.0,61907.0,0.002]
[1719506557747,0.1725,61911.0,61907.0,0.0177003]
[1719506557948,0.1725,61911.0,61897.0,0.000924]
[1719506557949,0.1725,61911.0,61901.0,0.0157003]
[1719506558155,0.1725,61911.0,61905.0,0.003]
[1719506558313,0.1725,61911.0,61905.0,0.007]
[1719506558515,0.1725,61911.0,61901.0,0.0157003]
[1719506558915,0.1725,61911.0,61902.0,0.00580157]
[1719506559424,0.1725,61911.0,61901.0,0.0157003]
[1719506559587,0.1725,61911.0,61907.0,0.883519]
[1719506559965,0.0883,61910.0,61908.0,0.00578917]
[1719506560177,0.05333998,61909.0,61908.0,0.00578917]
[1719506560333,0.1608,61908.0,61907.0,0.883519]
[1719506560543,0.2608,61908.0,61907.0,0.883519]
[1719506562092,0.2608,61908.0,61907.0,0.887519]
[1719506562295,0.2608,61908.0,61907.0,0.89331023]
[1719506563079,0.1,61908.0,61907.0,0.89331023]
[1719506563282,0.14074867,61908.0,61907.0,0.89331023]
[1719506563937,0.14074867,61908.0,61907.0,0.88931023]
[1719506564183,0.14074867,61908.0,61907.0,0.89031023]
[1719506564324,0.04074867,61908.0,61907.0,0.89031023]
[1719506564741,0.04074867,61908.0,61907.0,0.89331023]
[1719506565315,0.04074867,61908.0,61907.0,0.89031023]
[1719506565869,0.1,61911.0,61907.0,0.89031023]
[1719506566068,0.04655299,61910.0,61907.0,0.89031023]
[1719506568180,0.04655299,61910.0,61907.0,0.88931023]
[1719506569246,0.21003128,61910.0,61907.0,0.88931023]
[1719506569379,0.1,61909.0,61907.0,0.88931023]
[1719506569573,0.14068344,61909.0,61907.0,0.88931023]
[1719506570395,0.16347829,61908.0,61907.0,0.88931023]
[1719506570594,0.26347829,61908.0,61907.0,0.88931023]
[1719506571150,0.1,61908.0,61907.0,0.88931023]
[1719506571942,0.04068344,61909.0,61907.0,0.89031023]
[1719506574110,0.27935825,61909.0,61907.0,0.89031023]
[1719506574307,0.1,61908.0,61907.0,0.89031023]
[1719506574893,0.1,61908.0,61907.0,0.00679123]
[1719506575094,0.3389759,61908.0,61907.0,0.00579123]
[1719506575496,0.3389759,61908.0,61899.0,0.0923]
[1719506575675,0.234,61904.0,61899.0,0.0923]
[1719506575893,0.1,61903.0,61899.0,0.0923]
[1719506576126,0.1,61903.0,61900.0,0.0058052]
[1719506576892,0.0935,61901.0,61900.0,0.0058052]
[1719506578182,0.0935,61901.0,61900.0,0.0148052]
[1719506579106,0.0935,61901.0,61900.0,0.0248052]
[1719506579660,0.141162,61901.0,61900.0,0.0248052]
[1719506580224,0.269062,61901.0,61900.0,0.0248052]
[1719506580345,0.269062,61901.0,61900.0,0.019]
[1719506580754,0.269062,61901.0,61897.0,0.000924]
[1719506580755,0.1999296,61898.0,61897.0,0.000924]
[1719506580961,0.73230693,61898.0,61897.0,0.000924]
[1719506581562,0.93230693,61898.0,61897.0,0.000924]
[1719506582192,0.006,61894.0,61882.0,0.118]
[1719506582417,0.006,61894.0,61879.0,0.70722074]
[1719506582418,0.0935,61883.0,61879.0,0.70722074]
[1719506582588,0.0935,61880.0,61879.0,0.2194]
[1719506582788,0.234,61880.0,61874.0,0.2234]
[1719506583045,0.1,61879.0,61874.0,0.2234]
[1719506583330,0.16368574,61875.0,61874.0,0.2234]
[1719506583566,0.26368574,61875.0,61874.0,0.2234]
[1719506584053,0.1,61875.0,61874.0,0.2234]
[1719506584661,0.234,61880.0,61874.0,0.2234]
[1719506584662,0.1,61879.0,61874.0,0.2234]
[1719506584812,0.001,61875.0,61874.0,0.2294]
[1719506585149,0.001,61875.0,61874.0,0.2451003]
[1719506585301,0.163557,61877.0,61876.0,0.0157003]
[1719506585530,0.163557,61881.0,61880.0,0.0157003]
[1719506585735,0.1,61881.0,61880.0,0.40093928]
[1719506587042,0.1,61885.0,61882.0,0.0157003]
[1719506587381,0.263557,61885.0,61882.0,0.0157003]
[1719506587602,0.263557,61885.0,61880.0,0.2289]
[1719506587820,0.263557,61885.0,61880.0,0.2446003]
[1719506588025,0.263557,61885.0,61884.0,0.0157003]
[1719506588421,0.1,61885.0,61884.0,0.0157003]
[1719506589612,0.1,61885.0,61883.0,0.0157003]
[1719506590248,0.101,61885.0,61881.0,0.0157003]
[1719506590820,0.102,61885.0,61881.0,0.0157003]
[1719506591049,0.101,61885.0,61880.0,0.2486003]
[1719506591228,0.16345051,61883.0,61881.0,0.0157003]
[1719506591439,0.26345051,61882.0,61880.0,0.2386003]
[1719506591612,0.26345051,61882.0,61881.0,0.0227003]
[1719506591784,0.1,61882.0,61881.0,0.0227003]
[1719506592171,0.1,61882.0,61881.0,0.02832463]
[1719506592448,0.1,61883.0,61881.0,0.02132463]
[1719506592650,0.1,61884.0,61881.0,0.02132463]
[1719506593039,0.1,61884.0,61881.0,0.00562433]
[1719506593963,0.101,61884.0,61881.0,0.00562433]
[1719506594111,0.101,61884.0,61881.0,0.01162433]
[1719506594318,0.101,61884.0,61883.0,0.0157003]
[1719506594718,0.101,61884.0,61883.0,0.00562021]
[1719506595153,0.101,61884.0,61881.0,0.005]
[1719506595359,0.101,61884.0,61883.0,0.00562021]
[1719506595625,0.235,61884.0,61882.0,0.00562227]
[1719506595849,0.235,61884.0,61883.0,0.00562021]
[1719506596059,0.3437,61884.0,61875.0,0.2159]
[1719506596281,0.234,61876.0,61875.0,0.2159]
[1719506596489,0.334,61876.0,61875.0,0.21583917]
[1719506598275,0.335,61876.0,61875.0,0.22383917]
[1719506598486,0.335,61876.0,61875.0,0.22983917]
[1719506599195,0.335,61876.0,61875.0,0.24553947]
[1719506599399,0.335,61876.0,61875.0,0.22983917]
[1719506599595,0.335,61876.0,61875.0,0.24553947]
[1719506599825,0.101,61876.0,61875.0,0.24553947]
[1719506601186,0.101,61876.0,61875.0,0.22983917]
[1719506601403,0.001,61876.0,61875.0,0.22983917]
[1719506601698,0.101,61876.0,61875.0,0.23547585]
[1719506602696,0.001,61876.0,61875.0,0.014]
[1719506603238,0.001,61876.0,61875.0,0.01963668]
[1719506607741,0.001,61876.0,61875.0,0.014]
[1719506611741,0.001,61876.0,61875.0,0.0297003]
[1719506612278,0.001,61876.0,61875.0,0.25504094]
[1719506614636,0.001,61876.0,61875.0,0.41737992]
[1719506614837,0.26331943,61887.0,61886.0,0.2359003]
[1719506614838,0.1,61887.0,61886.0,0.2359003]
[1719506615043,0.1,61887.0,61886.0,0.40385728]
[1719506615246,0.01354302,61903.0,61891.0,0.0157003]
[1719506615247,0.1,61893.0,61891.0,0.0157003]
[1719506615443,0.16331943,61896.0,61892.0,0.00560424]
[1719506615444,0.1,61895.0,61892.0,0.00560424]
[1719506615645,0.26331943,61895.0,61892.0,0.00560424]
[1719506616302,0.26331943,61895.0,61893.0,0.1012]
[1719506616502,0.26331943,61895.0,61894.0,0.1390003]
[1719506616503,0.16331943,61895.0,61894.0,0.1390003]
[1719506616823,0.234,61899.0,61895.0,0.0157003]
[1719506617040,0.16334951,61898.0,61895.0,0.0157003]
[1719506617255,0.16334951,61898.0,61896.0,0.00559601]
[1719506617414,0.16334951,61898.0,61895.0,0.0157003]
[1719506617823,0.26334951,61897.0,61896.0,0.00559601]
[1719506617999,0.26334951,61897.0,61894.0,0.1233]
[1719506618211,0.26338155,61897.0,61896.0,0.00559601]
[1719506618428,0.26338155,61897.0,61895.0,0.00559807]
[1719506618617,0.26338155,61897.0,61896.0,0.00559601]
[1719506618795,0.1,61897.0,61896.0,0.00559601]
[1719506619000,0.003,61895.0,61894.0,0.1233]
[1719506619210,0.003,61895.0,61894.0,0.1390003]
[1719506619442,0.003,61895.0,61894.0,0.1233]
[1719506619646,0.26338155,61897.0,61894.0,0.1233]
[1719506619800,0.002,61895.0,61894.0,0.1233]
[1719506620005,0.26038155,61897.0,61894.0,0.1233]
[1719506620411,0.16338155,61896.0,61894.0,0.1333]
[1719506620747,0.097,61897.0,61894.0,0.1333]
[1719506620748,0.16338155,61895.0,61894.0,0.1233]
[1719506621135,0.16338155,61895.0,61894.0,0.1303]
[1719506621687,0.16338155,61895.0,61894.0,0.1233]
[1719506621891,0.16338155,61895.0,61894.0,0.1393]
[1719506622112,0.26438155,61895.0,61894.0,0.14489856]
[1719506622263,0.101,61895.0,61894.0,0.14489856]
[1719506622454,0.10092138,61895.0,61894.0,0.14489856]
[1719506623332,0.10092138,61895.0,61894.0,0.13689856]
[1719506623750,0.10092138,61895.0,61894.0,0.14689856]
[1719506623751,0.10192138,61895.0,61894.0,0.14689856]
[1719506625480,0.10192138,61895.0,61894.0,0.02359856]
[1719506626704,0.00192138,61895.0,61894.0,0.02359856]
[1719506628686,0.00192138,61895.0,61894.0,0.90730356]
[1719506637154,0.33592138,61895.0,61894.0,0.90730356]
[1719506637359,0.23592138,61895.0,61894.0,0.90730356]
[1719506637565,0.33592138,61895.0,61894.0,0.90730356]
[1719506638946,0.35962502,61895.0,61894.0,0.90730356]
[1719506639816,0.33592138,61895.0,61894.0,0.90730356]
[1719506640568,0.33592138,61895.0,61894.0,1.02210356]
[1719506640765,0.19552138,61895.0,61894.0,1.02210356]
[1719506640970,0.19552138,61895.0,61894.0,1.11530356]
[1719506641182,0.10192138,61895.0,61894.0,1.11530356]
[1719506641394,0.19552138,61895.0,61894.0,1.11530356]
[1719506642123,0.09552138,61895.0,61894.0,1.13900386]
[1719506642303,0.00192138,61895.0,61894.0,1.30134284]
[1719506642929,0.16427188,61909.0,61908.0,0.2317003]
[1719506643174,0.0936,61925.0,61908.0,0.49763928]
[1719506643377,0.0936,61926.0,61925.0,0.1345003]
[1719506643810,0.0936,61926.0,61925.0,0.1188]
[1719506644003,0.0936,61926.0,61925.0,0.12433217]
[1719506644824,0.16327016,61929.0,61925.0,0.12433217]
[1719506645049,0.16327016,61929.0,61925.0,0.1188]
[1719506645250,0.40527016,61930.0,61918.0,0.2108]
[1719506645443,0.2336,61925.0,61918.0,0.2265003]
[1719506645815,0.2336,61925.0,61919.0,0.0055445]
[1719506646365,0.1,61924.0,61919.0,0.0055445]
[1719506647271,0.1,61924.0,61919.0,0.0105445]
[1719506647465,0.1,61924.0,61919.0,0.0075445]
[1719506647466,0.2336,61920.0,61919.0,0.0075445]
[1719506647680,0.3336,61920.0,61919.0,0.0075445]
[1719506647895,0.3336,61920.0,61919.0,0.0115445]
[1719506648293,0.3336,61920.0,61919.0,0.006]
[1719506648689,0.3336,61920.0,61919.0,0.004]
[1719506649478,0.3336,61920.0,61919.0,0.008]
[1719506649883,0.3336,61920.0,61919.0,0.004]
[1719506650087,0.3336,61920.0,61912.0,0.0963]
[1719506650293,0.2336,61914.0,61912.0,0.0963]
[1719506650612,0.3336,61919.0,61913.0,0.00555342]
[1719506651732,0.1,61919.0,61918.0,0.2353003]
[1719506651915,0.17140139,61930.0,61918.0,0.2196]
[1719506652113,0.01691016,61928.0,61919.0,0.0157003]
[1719506652275,0.01691016,61928.0,61918.0,0.22514356]
[1719506652276,0.01691016,61928.0,61920.0,0.00553945]
[1719506652493,0.01691016,61928.0,61918.0,0.2196]
[1719506652710,0.01691016,61928.0,61919.0,0.0055415]
[1719506653935,0.01691016,61928.0,61919.0,0.0212418]
[1719506654141,0.01691016,61928.0,61919.0,0.0055415]
[1719506654884,0.2336,61925.0,61919.0,0.0064655]
[1719506655050,0.2336,61925.0,61919.0,0.0074655]
[1719506655051,0.1,61924.0,61919.0,0.0074655]
[1719506655599,0.1,61924.0,61919.0,0.0104655]
[1719506655830,0.1,61924.0,61919.0,0.0094655]
[1719506656156,0.1,61924.0,61919.0,0.0144655]
[1719506656587,0.1,61924.0,61919.0,0.0094655]
[1719506657103,0.1,61924.0,61919.0,0.01039174]
[1719506657444,0.1,61924.0,61919.0,0.01839174]
[1719506658106,0.1,61924.0,61919.0,0.01039174]
[1719506658348,0.18130346,61924.0,61919.0,0.01539174]
[1719506658547,0.2336,61920.0,61919.0,0.01539174]
[1719506658718,0.3336,61920.0,61919.0,0.01539174]
[1719506658907,0.33352708,61920.0,61919.0,0.009924]
[1719506659365,0.33352708,61920.0,61919.0,0.005924]
[1719506659366,0.37571052,61920.0,61919.0,0.005924]
[1719506660397,0.37571052,61920.0,61919.0,0.000924]
[1719506661265,0.53876009,61920.0,61919.0,0.000924]
[1719506661439,0.53576009,61920.0,61919.0,0.001924]
[1719506661639,0.37271052,61920.0,61919.0,0.000924]
[1719506662051,0.37271052,61920.0,61919.0,0.001924]
[1719506662618,0.33352708,61920.0,61919.0,0.000924]
[1719506662817,0.33352708,61920.0,61919.0,0.212124]
[1719506662818,0.1,61920.0,61919.0,0.212124]
[1719506663057,0.00882245,61925.0,61919.0,0.21765988]
[1719506663258,0.04767987,61925.0,61919.0,0.21765988]
[1719506663675,0.04767987,61925.0,61919.0,0.212124]
[1719506663882,0.03885742,61925.0,61919.0,0.212124]
[1719506664076,0.03885742,61925.0,61920.0,0.00553383]
[1719506664245,0.2336,61923.0,61920.0,0.00553383]
[1719506664444,0.1,61922.0,61919.0,0.000924]
[1719506664723,0.1,61922.0,61921.0,0.0055311]
[1719506664923,0.1,61922.0,61920.0,0.00553316]
[1719506665107,0.1,61922.0,61919.0,0.000924]
[1719506665108,0.1,61922.0,61921.0,0.00553127]
[1719506665475,0.1,61922.0,61919.0,0.000924]
[1719506665674,0.1,61922.0,61921.0,0.00553128]
[1719506665887,0.26608198,61922.0,61920.0,0.00553421]
[1719506666085,0.16308315,61921.0,61919.0,0.000924]
[1719506666297,0.26308315,61920.0,61919.0,0.000924]
[1719506668259,0.1,61920.0,61919.0,0.000924]
[1719506668430,0.0121,61921.0,61919.0,0.000924]
[1719506668659,0.03911822,61921.0,61919.0,0.000924]
[1719506668870,0.16809756,61920.0,61919.0,0.000924]
[1719506669074,0.26809652,61920.0,61919.0,0.000924]
[1719506669283,0.1,61920.0,61919.0,0.000924]
[1719506669679,0.1,61920.0,61919.0,0.001924]
[1719506670078,0.04111822,61921.0,61919.0,0.001924]
[1719506670316,0.04111822,61921.0,61919.0,0.000924]
[1719506670317,0.03911822,61921.0,61919.0,0.000924]
[1719506670669,0.004,61920.0,61919.0,0.000924]
[1719506671605,0.009,61920.0,61919.0,0.000924]
[1719506672096,0.005,61920.0,61919.0,0.000924]
[1719506672372,0.005,61920.0,61919.0,0.00188396]
[1719506673007,0.005,61920.0,61919.0,0.00088396]
[1719506673183,0.007,61920.0,61919.0,0.00088396]
[1719506675050,0.007,61920.0,61919.0,0.00642049]
[1719506675678,0.007,61920.0,61919.0,0.12562049]
[1719506676315,0.107,61920.0,61919.0,0.12562049]
[1719506677118,0.105,61920.0,61919.0,0.12562049]
[1719506677522,0.10495436,61920.0,61919.0,0.12562049]
[1719506677735,0.26813314,61920.0,61919.0,0.12562049]
[1719506678117,0.10495436,61920.0,61919.0,0.12562049]
[1719506678325,0.023801,61922.0,61919.0,0.12562049]
[1719506678487,0.002,61920.0,61919.0,0.12562049]
[1719506678684,0.003,61920.0,61919.0,0.12562049]
[1719506679245,0.001,61920.0,61919.0,0.12562049]
[1719506679461,0.101,61920.0,61919.0,0.12562049]
[1719506679663,0.101,61920.0,61919.0,0.12562034]
[1719506680047,0.101,61920.0,61919.0,0.00642034]
[1719506682085,0.103,61920.0,61919.0,0.00642034]
[1719506686113,0.003,61920.0,61919.0,0.00642034]
[1719506686501,0.003,61920.0,61919.0,0.11922034]
[1719506686712,0.003,61920.0,61919.0,0.11368396]
[1719506687076,0.00384,61920.0,61919.0,0.11922045]
[1719506687218,0.24232034,61920.0,61919.0,0.11922045]
[1719506687428,0.34232034,61920.0,61919.0,0.11922045]
[1719506688238,0.10384,61920.0,61919.0,0.11922045]
[1719506689583,0.00384,61920.0,61919.0,0.11972045]
[1719506689795,0.01054,61920.0,61919.0,0.00684277]
[1719506690921,0.00384,61920.0,61919.0,0.00684277]
[1719506691130,0.00384,61920.0,61919.0,0.00130628]
[1719506691343,0.00384,61920.0,61919.0,0.12694297]
[1719506691606,0.00384,61920.0,61919.0,0.22100628]
[1719506691797,0.00384,61920.0,61919.0,0.22654297]
[1719506693803,0.00384,61920.0,61919.0,0.24224327]
[1719506693959,0.10384,61920.0,61919.0,0.24224327]
[1719506694177,0.10384,61920.0,61919.0,0.22654297]
[1719506694178,0.00384,61920.0,61919.0,0.22654297]
[1719506694360,0.00384,61920.0,61919.0,0.24224327]
[1719506694565,0.00384,61920.0,61919.0,0.22654297]
[1719506695616,0.00384,61920.0,61919.0,0.24224327]
[1719506696431,0.00284,61920.0,61919.0,0.24224327]
[1719506696696,0.00084,61920.0,61919.0,0.24824327]
[1719506697267,0.00084,61920.0,61919.0,0.25224327]
[1719506698057,0.00084,61920.0,61919.0,0.41458225]
[1719506698832,0.10084,61920.0,61919.0,0.41458225]
[1719506698996,0.10084,61920.0,61919.0,0.40858225]
[1719506699443,0.10084,61920.0,61919.0,0.42258225]
[1719506699640,0.10084,61920.0,61919.0,0.43258225]
[1719506699806,0.10084,61920.0,61919.0,0.41808225]
[1719506700005,0.10084,61920.0,61919.0,0.42808225]
[1719506700207,0.16370972,61922.0,61921.0,0.0257003]
[1719506700435,0.16370972,61925.0,61924.0,0.2439003]
[1719506700589,0.00084,61928.0,61927.0,0.0157003]
[1719506700798,0.00084,61928.0,61927.0,0.40175751]
[1719506701828,0.00084,61928.0,61927.0,0.23941853]
[1719506702040,0.16437334,61928.0,61927.0,0.23941853]
[1719506702239,0.00084,61928.0,61927.0,0.23941853]
[1719506702439,0.10084,61928.0,61927.0,0.23941853]
[1719506703234,0.10084,61928.0,61927.0,0.25241853]
[1719506703444,0.00084,61928.0,61927.0,0.25241853]
[1719506703852,0.00084,61928.0,61927.0,0.26441853]
[1719506704058,0.16432909,61928.0,61927.0,0.26441853]
[1719506704256,0.10084,61928.0,61927.0,0.26441853]
[1719506705319,0.46668287,61945.0,61935.0,0.0911]
[1719506705500,0.2336,61940.0,61936.0,0.1155]
[1719506706013,0.2336,61940.0,61937.0,0.00549619]
[1719506706590,0.2336,61941.0,61937.0,0.00549619]
[1719506706841,0.02384959,61945.0,61937.0,0.00549619]
[1719506707038,0.0963,61949.0,61937.0,0.00549619]
[1719506707039,0.2336,61941.0,61938.0,0.0157003]
[1719506707243,0.2336,61941.0,61938.0,0.02119444]
[1719506707441,0.1,61940.0,61938.0,0.02119444]
[1719506708016,0.1,61940.0,61938.0,0.00549414]
[1719506708409,0.1,61940.0,61939.0,0.0157003]
[1719506708711,0.2336,61941.0,61940.0,0.0157003]
[1719506708913,0.3336,61941.0,61940.0,0.0964]
[1719506709319,0.064744,61949.0,61944.0,0.0157003]
[1719506709494,0.02400343,61949.0,61947.0,0.2153]
[1719506709746,0.2460226,61954.0,61947.0,0.2153]
[1719506709901,0.0124226,61954.0,61950.0,0.0157003]
[1719506710101,0.0124226,61954.0,61948.0,0.02117236]
[1719506710263,0.0124226,61954.0,61947.0,0.122]
[1719506710462,0.0124226,61954.0,61949.0,0.00546958]
[1719506710778,0.0124226,61954.0,61947.0,0.122]
[1719506711203,0.0124226,61954.0,61948.0,0.00547163]
[1719506711407,0.1124226,61954.0,61948.0,0.00547163]
[1719506711607,0.1124226,61954.0,61949.0,0.002]
[1719506711794,0.1124226,61954.0,61949.0,0.00746958]
[1719506711981,0.0124226,61954.0,61953.0,0.2384003]
[1719506712209,0.0124226,61954.0,61953.0,0.2284003]
[1719506712730,0.0124226,61954.0,61953.0,0.4062001]
[1719506712929,0.0124226,61954.0,61953.0,0.3962001]
[1719506713970,0.0124226,61954.0,61953.0,0.4082001]
[1719506714595,0.0124226,61954.0,61953.0,0.4182001]
[1719506714802,0.0124226,61954.0,61953.0,0.4082001]
[1719506716041,0.0124226,61954.0,61953.0,0.4212001]
[1719506716259,0.0084,61957.0,61956.0,0.2288003]
[1719506716491,0.0084,61957.0,61956.0,0.39113928]
[1719506716660,0.0084,61957.0,61956.0,0.39659273]
[1719506718489,0.0084,61957.0,61956.0,0.00545345]
[1719506718623,0.1289,61957.0,61956.0,0.013]
[1719506718823,0.1289,61957.0,61956.0,0.01724166]
[1719506719050,0.1289,61957.0,61956.0,0.012]
[1719506719051,0.49686109,61957.0,61956.0,0.012]
[1719506719922,0.51986109,61957.0,61956.0,0.026]
[1719506720122,0.51986109,61957.0,61956.0,0.014]
[1719506720346,0.71986109,61957.0,61956.0,0.015]
[1719506720500,0.83268016,61957.0,61956.0,0.015]
[1719506720757,0.71986109,61957.0,61956.0,0.015]
[1719506720918,0.71986109,61957.0,61956.0,0.014]
[1719506721117,0.2,61953.0,61937.0,0.474]
[1719506721339,0.2336,61939.0,61934.0,0.0925]
[1719506721510,0.2336,61939.0,61938.0,0.00527863]
[1719506721722,0.3336,61939.0,61934.0,0.0925]
[1719506722009,0.1,61938.0,61935.0,0.00528479]
[1719506722180,0.1,61938.0,61934.0,0.1082003]
[1719506722379,0.1,61938.0,61935.0,0.00528479]
[1719506722578,0.1,61938.0,61934.0,0.1082003]
[1719506722785,0.1,61938.0,61935.0,0.00528807]
[1719506722986,0.1,61938.0,61936.0,0.0157003]
[1719506723186,0.1,61938.0,61934.0,0.1082003]
[1719506723464,0.1,61943.0,61934.0,0.0925]
[1719506723710,0.1,61943.0,61935.0,0.00528806]
[1719506724154,0.2336,61936.0,61935.0,0.00528806]
[1719506724245,0.3336,61936.0,61935.0,0.01328806]
[1719506724393,0.06527859,61936.0,61935.0,0.01328806]
[1719506724583,0.29887859,61936.0,61935.0,0.00528806]
[1719506724791,0.29887859,61936.0,61925.0,0.1228]
[1719506724998,0.2336,61929.0,61926.0,0.00530644]
[1719506725190,0.2336,61929.0,61925.0,0.1228]
[1719506725393,0.2336,61929.0,61924.0,0.098]
[1719506725683,0.2336,61929.0,61925.0,0.00530849]
[1719506725849,0.1147,61929.0,61919.0,0.00080628]
[1719506726047,0.2336,61926.0,61919.0,0.00080628]
[1719506726484,0.1,61925.0,61919.0,0.00080628]
[1719506727233,0.1,61925.0,61920.0,0.00531877]
[1719506727444,0.2336,61921.0,61920.0,0.00531877]
[1719506727679,0.3336,61921.0,61919.0,0.00080628]
[1719506727831,0.1,61920.0,61919.0,0.00080628]
[1719506729777,0.2336,61924.0,61920.0,0.001]
[1719506729975,0.1,61923.0,61920.0,0.001]
[1719506730563,0.1,61923.0,61922.0,0.1355003]
[1719506730821,0.1,61923.0,61922.0,0.23722419]
[1719506731402,0.1,61923.0,61922.0,0.22152389]
[1719506731753,0.1,61934.0,61924.0,0.0157003]
[1719506731973,0.1,61934.0,61930.0,0.0157003]
[1719506732144,0.37038287,61942.0,61935.0,0.2177]
[1719506732145,0.02416345,61942.0,61935.0,0.2177]